bitfinex/quotes_BTCUSD_20240901
["timestamp","ask_amount","ask_price","bid_price","bid_amount"]
[1725175461270,1.98516907,58320.0,58319.0,0.0875998]
[1725175462553,1.98490916,58320.0,58319.0,0.0875998]
[1725175463751,2.01180252,58320.0,58319.0,0.0875998]
[1725175464154,2.04988752,58320.0,58319.0,0.0875998]
[1725175465853,1.80290252,58320.0,58319.0,0.0875998]
[1725175466305,2.26907652,58320.0,58319.0,0.0875998]
[1725175467846,2.27907652,58320.0,58319.0,0.0018998]
[1725175470226,2.25218316,58320.0,58319.0,0.0018998]
[1725175472347,2.25192396,58320.0,58319.0,0.0018998]
[1725175473594,2.27881869,58320.0,58319.0,0.0018998]
[1725175476932,1.81764469,58320.0,58319.0,0.0018998]
[1725175477133,3.20904969,58320.0,58319.0,0.0018998]
[1725175477272,3.24101187,58320.0,58319.0,0.0018998]
[1725175479930,3.30981987,58320.0,58319.0,0.0018998]
[1725175480765,2.86215587,58320.0,58319.0,0.0018998]
[1725175481669,2.84462687,58320.0,58319.0,0.0018998]
[1725175481883,2.58159198,58320.0,58319.0,0.0018998]
[1725175482331,2.75305898,58320.0,58319.0,0.0018998]
[1725175482543,2.75279905,58320.0,58319.0,0.0018998]
[1725175484178,2.70391405,58320.0,58319.0,0.0018998]
[1725175484513,2.64391405,58320.0,58319.0,0.0018998]
[1725175485151,2.43577105,58320.0,58319.0,0.0018998]
[1725175488025,2.41734105,58320.0,58319.0,0.0815998]
[1725175488256,2.39530105,58320.0,58319.0,0.0815998]
[1725175490987,2.36840632,58320.0,58319.0,0.0815998]
[1725175491399,2.36340632,58320.0,58319.0,0.0815998]
[1725175491795,2.17085832,58320.0,58319.0,0.0815998]
[1725175492209,2.17585832,58320.0,58319.0,0.0815998]
[1725175492420,2.17085832,58320.0,58319.0,0.0815998]
[1725175492626,2.17059912,58320.0,58319.0,0.0815998]
[1725175492818,2.13580312,58320.0,58319.0,0.0815998]
[1725175493026,2.13580312,58320.0,58319.0,0.09065958]
[1725175493166,2.14080312,58320.0,58319.0,0.09065958]
[1725175493574,1.28254812,58320.0,58319.0,0.19065958]
[1725175493807,1.62223712,58320.0,58319.0,0.1815998]
[1725175494006,1.55768512,58320.0,58319.0,0.1815998]
[1725175500596,1.58457838,58320.0,58319.0,0.1815998]
[1725175502420,1.58431845,58320.0,58319.0,0.1815998]
[1725175503317,1.55742519,58320.0,58319.0,0.1815998]
[1725175503999,1.96048685,58320.0,58319.0,0.0815998]
[1725175504242,1.96548685,58320.0,58319.0,0.0815998]
[1725175507630,1.99238043,58320.0,58319.0,0.0815998]
[1725175509636,1.93725377,58320.0,58319.0,0.0815998]
[1725175510505,1.91036019,58320.0,58319.0,0.0815998]
[1725175512630,1.91010099,58320.0,58319.0,0.0815998]
[1725175513766,1.93699466,58320.0,58319.0,0.0815998]
[1725175513985,2.91575966,58320.0,58319.0,0.0815998]
[1725175514212,2.91075966,58320.0,58319.0,0.0815998]
[1725175514432,2.5328164,58320.0,58319.0,0.0815998]
[1725175514694,2.0812254,58320.0,58319.0,0.0815998]
[1725175515131,2.04922666,58320.0,58319.0,0.0815998]
[1725175518179,2.04912066,58320.0,58319.0,0.0815998]
[1725175520553,2.02222699,58320.0,58319.0,0.0815998]
[1725175521941,1.72010599,58320.0,58319.0,0.1791998]
[1725175522944,0.91109399,58320.0,58319.0,0.19801958]
[1725175523167,0.90623599,58320.0,58319.0,0.19801958]
[1725175523768,0.90623599,58320.0,58319.0,0.1791998]
[1725175524736,1.00623599,58320.0,58319.0,0.1791998]
[1725175525381,1.03312903,58320.0,58319.0,0.1791998]
[1725175527148,1.37606403,58320.0,58319.0,0.1791998]
[1725175527590,1.37606403,58320.0,58319.0,0.0815998]
[1725175527813,1.39906403,58320.0,58319.0,0.0815998]
[1725175528028,1.91012703,58320.0,58319.0,0.0815998]
[1725175528691,1.73473003,58320.0,58319.0,0.0815998]
[1725175529110,1.61109803,58320.0,58319.0,0.0815998]
[1725175530406,1.58315203,58320.0,58319.0,0.0815998]
[1725175531078,1.39906403,58320.0,58319.0,0.10081958]
[1725175531316,1.39906403,58320.0,58319.0,0.0815998]
[1725175532163,2.09742803,58320.0,58319.0,0.0815998]
[1725175532626,2.09716827,58320.0,58319.0,0.0815998]
[1725175533494,2.09716827,58320.0,58319.0,0.0018998]
[1725175535022,2.07027523,58320.0,58319.0,0.0018998]
[1725175535845,2.02983523,58320.0,58319.0,0.0018998]
[1725175536046,2.37277023,58320.0,58319.0,0.0018998]
[1725175537605,2.23912323,58320.0,58319.0,0.0018998]
[1725175538300,2.26601974,58320.0,58319.0,0.0018998]
[1725175538939,2.27101974,58320.0,58319.0,0.0018998]
[1725175539121,2.25555774,58320.0,58319.0,0.0018998]
[1725175543305,3.00108023,58320.0,58319.0,0.0018998]
[1725175543536,3.03307897,58320.0,58319.0,0.0018998]
[1725175543993,0.005,58317.0,58316.0,0.008998]
[1725175544217,0.005,58317.0,58313.0,0.008998]
[1725175544218,0.614597,58314.0,58313.0,0.008998]
[1725175544441,2.355428,58314.0,58313.0,0.008998]
[1725175544680,2.297545,58314.0,58313.0,0.008998]
[1725175544900,2.27685,58314.0,58313.0,0.008998]
[1725175545975,1.98210813,58314.0,58313.0,0.008998]
[1725175546197,2.07725013,58314.0,58313.0,0.008998]
[1725175546423,2.24873513,58314.0,58313.0,0.008998]
[1725175546648,2.27563511,58314.0,58313.0,0.008998]
[1725175546886,2.27563511,58314.0,58313.0,0.010998]
[1725175547115,2.27563511,58314.0,58313.0,0.011998]
[1725175550515,2.24873513,58314.0,58313.0,0.011998]
[1725175551176,2.26358177,58314.0,58313.0,0.011998]
[1725175552743,2.2633219,58314.0,58313.0,0.011998]
[1725175553682,2.29022173,58314.0,58313.0,0.011998]
[1725175554119,3.02207173,58314.0,58313.0,0.011998]
[1725175554332,3.01176673,58314.0,58313.0,0.011998]
[1725175554550,3.02376473,58314.0,58313.0,0.011998]
[1725175556399,2.94996873,58314.0,58313.0,0.011998]
[1725175556621,2.66274373,58314.0,58313.0,0.090298]
[1725175560532,2.6358439,58314.0,58313.0,0.090298]
[1725175562542,2.6366619,58314.0,58313.0,0.090298]
[1725175562760,2.6364027,58314.0,58313.0,0.090298]
[1725175563898,2.66329952,58314.0,58313.0,0.090298]
[1725175568813,2.66329952,58314.0,58313.0,0.1987692]
[1725175568814,2.56815752,58314.0,58313.0,0.1987692]
[1725175569026,2.66329952,58314.0,58313.0,0.1987692]
[1725175569254,2.05541652,58314.0,58313.0,0.187898]
[1725175569717,2.18288452,58314.0,58313.0,0.187898]
[1725175570396,2.1559877,58314.0,58313.0,0.187898]
[1725175570598,2.1789877,58314.0,58313.0,0.187898]
[1725175573295,2.23411436,58314.0,58313.0,0.187898]
[1725175573775,2.26101039,58314.0,58313.0,0.187898]
[1725175575298,2.20588373,58314.0,58313.0,0.187898]
[1725175576478,2.1789877,58314.0,58313.0,0.187898]
[1725175578062,2.1789877,58314.0,58313.0,0.090298]
[1725175578611,2.5219577,58314.0,58313.0,0.090298]
[1725175579069,2.54885462,58314.0,58313.0,0.090298]
[1725175579716,2.58083024,58314.0,58313.0,0.090298]
[1725175580348,2.55393332,58314.0,58313.0,0.090298]
[1725175580560,2.5219577,58314.0,58313.0,0.090298]
[1725175582515,2.1789877,58314.0,58313.0,0.090298]
[1725175582958,2.5339577,58314.0,58313.0,0.011998]
[1725175583177,2.58908436,58314.0,58313.0,0.011998]
[1725175583610,2.64595744,58314.0,58313.0,0.011998]
[1725175583836,2.64595744,58314.0,58313.0,0.010998]
[1725175584103,2.65395744,58314.0,58313.0,0.009998]
[1725175584573,2.65495744,58314.0,58313.0,0.009998]
[1725175584787,2.66295744,58314.0,58313.0,0.010998]
[1725175590222,2.63605998,58314.0,58313.0,0.010998]
[1725175592393,3.34282198,58314.0,58313.0,0.010998]
[1725175592608,3.34256216,58314.0,58313.0,0.010998]
[1725175593702,3.33192116,58314.0,58313.0,0.010998]
[1725175596000,3.33392116,58314.0,58313.0,0.010998]
[1725175596448,3.33192116,58314.0,58313.0,0.010998]
[1725175596707,3.33192116,58314.0,58313.0,0.194198]
[1725175596708,1.4988965,58314.0,58313.0,0.194198]
[1725175596945,1.33120504,58314.0,58313.0,0.194198]
[1725175598276,1.43120504,58314.0,58313.0,0.194198]
[1725175600532,1.40430788,58314.0,58313.0,0.194198]
[1725175603859,1.43120349,58314.0,58313.0,0.194198]
[1725175610214,1.43120349,58314.0,58313.0,0.2154592]
[1725175610438,1.40430788,58314.0,58313.0,0.194198]
[1725175613761,1.43120314,58314.0,58313.0,0.194198]
[1725175620628,1.70377088,58314.0,58313.0,0.092298]
[1725175622445,1.70377088,58314.0,58313.0,0.010998]
[1725175622905,2.04674088,58314.0,58313.0,0.010998]
[1725175624527,2.07363707,58314.0,58313.0,0.010998]
[1725175625065,1.79717407,58314.0,58313.0,0.010998]
[1725175625316,2.66541107,58314.0,58313.0,0.010998]
[1725175626647,2.64541107,58314.0,58313.0,0.010998]
[1725175628020,2.24160407,58314.0,58313.0,0.010998]
[1725175629025,2.22541907,58314.0,58313.0,0.010998]
[1725175629899,2.07109207,58314.0,58313.0,0.010998]
[1725175630557,2.04419588,58314.0,58313.0,0.094098]
[1725175631014,2.04419588,58314.0,58313.0,0.2052492]
[1725175631015,0.96619588,58314.0,58313.0,0.2052492]
[1725175631225,1.06133788,58314.0,58313.0,0.2052492]
[1725175632348,1.06133788,58314.0,58313.0,0.2102492]
[1725175632349,0.017818,58314.0,58313.0,0.2102492]
[1725175632566,0.017818,58314.0,58313.0,0.21367849]
[1725175633239,0.000818,58314.0,58313.0,0.21167849]
[1725175633454,0.000818,58314.0,58313.0,0.21267849]
[1725175633671,0.000818,58314.0,58313.0,0.21467849]
[1725175634130,0.02771025,58314.0,58313.0,0.21467849]
[1725175634770,0.02771025,58314.0,58313.0,0.20342729]
[1725175634976,0.02771025,58314.0,58313.0,0.199998]
[1725175634977,0.19919525,58314.0,58313.0,0.199998]
[1725175640021,0.54216525,58314.0,58313.0,0.199998]
[1725175640235,0.095142,58316.0,58314.0,0.0789]
[1725175640464,0.85741,58315.0,58314.0,0.0789]
[1725175640715,0.85741,58315.0,58314.0,0.0839]
[1725175641180,0.85741,58315.0,58314.0,0.1053212]
[1725175641413,0.85741,58315.0,58314.0,0.1003212]
[1725175642294,0.85741,58315.0,58314.0,0.1053212]
[1725175642747,0.85741,58315.0,58314.0,0.1003212]
[1725175642969,0.85741,58315.0,58314.0,0.1063212]
[1725175644997,0.858228,58315.0,58314.0,0.1063212]
[1725175645899,0.858228,58315.0,58314.0,0.2054212]
[1725175650375,0.858228,58315.0,58314.0,0.184]
[1725175653640,1.201192,58315.0,58314.0,0.179]
[1725175653853,1.201192,58315.0,58314.0,0.0799]
[1725175657442,1.201192,58315.0,58314.0,0.0807998]
[1725175663879,1.22808455,58315.0,58314.0,0.0807998]
[1725175664560,0.54215655,58315.0,58314.0,0.19782098]
[1725175670429,0.000818,58315.0,58314.0,0.19782098]
[1725175671254,0.000818,58315.0,58314.0,0.36930598]
[1725175671700,0.000818,58315.0,58314.0,0.19782098]
[1725175673647,0.0277094,58315.0,58314.0,0.19782098]
[1725175676637,0.0277094,58315.0,58314.0,0.36930598]
[1725175676892,0.0277094,58315.0,58314.0,0.19782098]
[1725175677112,0.0277094,58315.0,58314.0,0.20125031]
[1725175677528,0.0277094,58315.0,58314.0,1.05867531]
[1725175677737,0.0277094,58315.0,58314.0,1.05524598]
[1725175678795,0.0277094,58315.0,58314.0,0.71227598]
[1725175680506,0.000818,58315.0,58314.0,0.71227598]
[1725175682631,0.000818,58315.0,58314.0,1.05524598]
[1725175683678,0.000818,58315.0,58314.0,1.10679201]
[1725175683901,0.000818,58315.0,58314.0,1.05524598]
[1725175684103,0.000818,58315.0,58314.0,1.47553502]
[1725175684321,0.000818,58315.0,58314.0,1.13456502]
[1725175684557,0.000818,58315.0,58314.0,1.47753502]
[1725175684769,0.000818,58315.0,58314.0,1.13456502]
[1725175685693,0.000818,58315.0,58314.0,1.47750175]
[1725175686150,0.000818,58315.0,58314.0,1.40021598]
[1725175688756,0.000818,58315.0,58314.0,1.47750175]
[1725175690046,0.000818,58315.0,58314.0,1.47650175]
[1725175690286,0.001818,58315.0,58314.0,1.41121598]
[1725175693078,0.001818,58315.0,58314.0,1.4626914]
[1725175695671,0.001818,58315.0,58314.0,1.4626828]
[1725175698584,0.001818,58315.0,58314.0,1.4606828]
[1725175698792,0.001818,58315.0,58314.0,1.4626828]
[1725175699251,0.001818,58315.0,58314.0,1.41121598]
[1725175702217,0.001818,58315.0,58314.0,1.40921598]
[1725175704593,0.001818,58315.0,58314.0,1.4626828]
[1725175705034,0.001818,58315.0,58314.0,1.41117585]
[1725175705637,0.001818,58315.0,58314.0,1.46264267]
[1725175705887,0.001818,58315.0,58314.0,1.46263753]
[1725175707908,0.001818,58315.0,58314.0,1.11966753]
[1725175708146,0.001818,58315.0,58314.0,1.11766753]
[1725175708588,0.001818,58315.0,58314.0,1.41117585]
[1725175708807,0.001818,58315.0,58314.0,1.48836838]
[1725175709296,0.001818,58315.0,58314.0,1.48837714]
[1725175709538,0.001818,58315.0,58314.0,1.41117585]
[1725175710411,0.001818,58315.0,58314.0,1.48838163]
[1725175710628,0.001818,58315.0,58314.0,1.41117585]
[1725175712625,0.001818,58315.0,58314.0,1.40917585]
[1725175713523,0.001818,58315.0,58314.0,1.04988467]
[1725175713733,1.10307,58315.0,58314.0,0.0178998]
[1725175714900,1.11754558,58315.0,58314.0,0.0128998]
[1725175715131,1.11954558,58315.0,58314.0,0.0128998]
[1725175715575,1.11954558,58315.0,58314.0,0.0078998]
[1725175715576,1.46250958,58315.0,58314.0,0.0078998]
[1725175715796,1.46050958,58315.0,58314.0,0.0078998]
[1725175716027,1.46150958,58315.0,58314.0,0.0008998]
[1725175716476,1.48940226,58315.0,58314.0,0.0008998]
[1725175718973,1.58940226,58315.0,58314.0,0.0008998]
[1725175720476,1.56250958,58315.0,58314.0,0.0008998]
[1725175725113,1.58940425,58315.0,58314.0,0.0008998]
[1725175730464,1.56250958,58315.0,58314.0,0.0008998]
[1725175732475,2.31802258,58315.0,58314.0,0.0008998]
[1725175733556,2.3679184,58315.0,58314.0,0.0008998]
[1725175735241,2.11896726,58315.0,58314.0,0.0008998]
[1725175735658,2.29044926,58315.0,58314.0,0.0008998]
[1725175736224,1.53493626,58315.0,58314.0,0.0008998]
[1725175736641,2.49265526,58315.0,58314.0,0.0008998]
[1725175738058,2.48032826,58315.0,58314.0,0.0008998]
[1725175739789,2.48114626,58315.0,58314.0,0.0008998]
[1725175740010,2.34184126,58315.0,58314.0,0.0008998]
[1725175740717,2.06834226,58315.0,58314.0,0.0008998]
[1725175740931,1.99671426,58315.0,58314.0,0.0008998]
[1725175741153,2.33967826,58315.0,58314.0,0.0008998]
[1725175742815,2.13468426,58315.0,58314.0,0.0008998]
[1725175743066,2.08087926,58315.0,58314.0,0.0008998]
[1725175743274,2.05398344,58315.0,58314.0,0.0008998]
[1725175747392,1.89365444,58315.0,58314.0,0.0008998]
[1725175748940,2.18951544,58315.0,58314.0,0.0008998]
[1725175750906,2.21641167,58315.0,58314.0,0.0008998]
[1725175752642,2.18951544,58315.0,58314.0,0.0008998]
[1725175755970,2.2164117,58315.0,58314.0,0.0008998]
[1725175758484,2.27153836,58315.0,58314.0,0.0008998]
[1725175761217,2.2446421,58315.0,58314.0,0.0008998]
[1725175762164,2.2536401,58315.0,58314.0,0.0008998]
[1725175764303,1.93640144,58315.0,58314.0,0.0795998]
[1725175764526,1.86570144,58315.0,58314.0,0.0795998]
[1725175765600,1.86570144,58315.0,58314.0,0.0008998]
[1725175769111,1.89259785,58315.0,58314.0,0.0008998]
[1725175770436,1.86570144,58315.0,58314.0,0.0008998]
[1725175771024,1.71212044,58315.0,58314.0,0.0008998]
[1725175771254,2.21617244,58315.0,58314.0,0.0008998]
[1725175771469,2.20375044,58315.0,58314.0,0.0008998]
[1725175773748,2.23064672,58315.0,58314.0,0.0008998]
[1725175774591,2.21215586,58315.0,58314.0,0.0008998]
[1725175774829,2.30729786,58315.0,58314.0,0.0008998]
[1725175780384,2.28040158,58315.0,58314.0,0.0008998]
[1725175783815,2.30729811,58315.0,58314.0,0.0008998]
[1725175784030,3.37732711,58315.0,58314.0,0.0008998]
[1725175784496,3.36456511,58315.0,58314.0,0.0008998]
[1725175786061,3.34456511,58315.0,58314.0,0.0008998]
[1725175790440,3.31766858,58315.0,58314.0,0.0008998]
[1725175793766,3.29328058,58315.0,58314.0,0.0008998]
[1725175794085,3.3201772,58315.0,58314.0,0.0008998]
[1725175795194,3.3001772,58315.0,58314.0,0.0008998]
[1725175796413,1.8156682,58315.0,58314.0,0.0008998]
[1725175797064,3.3838962,58315.0,58314.0,0.0008998]
[1725175798363,3.7268602,58315.0,58314.0,0.0008998]
[1725175798560,3.0858352,58315.0,58314.0,0.0008998]
[1725175798769,2.7019222,58315.0,58314.0,0.0008998]
[1725175800675,2.67502558,58315.0,58314.0,0.0008998]
[1725175802894,2.67702558,58315.0,58314.0,0.0008998]
[1725175804449,2.70392217,58315.0,58314.0,0.0008998]
[1725175804889,2.60678017,58315.0,58314.0,0.0008998]
[1725175805119,2.70192217,58315.0,58314.0,0.0826998]
[1725175807576,2.15863217,58315.0,58314.0,0.0826998]
[1725175807794,3.01737817,58315.0,58314.0,0.0826998]
[1725175808013,2.96846517,58315.0,58314.0,0.0826998]
[1725175809112,2.82369417,58315.0,58314.0,0.0826998]
[1725175810470,2.79679758,58315.0,58314.0,0.0826998]
[1725175812141,1.78877158,58315.0,58314.0,0.10402098]
[1725175812584,1.89355358,58315.0,58314.0,0.10402098]
[1725175812801,0.171517,58303.0,58302.0,0.09133898]
[1725175813018,0.857587,58303.0,58302.0,0.09133898]
[1725175814802,1.200622,58303.0,58302.0,0.10137268]
[1725175815891,1.201622,58303.0,58302.0,0.29197268]
[1725175816124,1.202622,58303.0,58302.0,0.30397268]
[1725175816344,1.202622,58303.0,58302.0,0.29393898]
[1725175816791,1.201622,58303.0,58302.0,0.28193898]
[1725175816998,1.200622,58303.0,58302.0,0.27193898]
[1725175817256,1.21552242,58303.0,58302.0,0.27193898]
[1725175818192,1.21752242,58303.0,58302.0,0.28793898]
[1725175819076,1.21752242,58303.0,58302.0,0.28883878]
[1725175828283,1.21752242,58303.0,58302.0,0.31862246]
[1725175828733,1.21752242,58303.0,58302.0,0.28883878]
[1725175830553,1.21834042,58303.0,58302.0,0.28883878]
[1725175835189,0.002818,58303.0,58302.0,0.46035878]
[1725175835426,0.02689788,58306.0,58305.0,0.699734]
[1725175835660,0.02689788,58306.0,58305.0,0.90582571]
[1725175835886,0.000818,58315.0,58311.0,0.171493]
[1725175836108,0.000818,58315.0,58314.0,0.1852]
[1725175836380,0.000818,58315.0,58314.0,0.18862924]
[1725175836614,0.000818,58315.0,58314.0,0.699655]
[1725175836840,0.000818,58315.0,58314.0,0.4403221]
[1725175837085,0.000818,58315.0,58314.0,0.2688371]
[1725175838202,0.000818,58315.0,58314.0,0.4403221]
[1725175839193,0.002818,58315.0,58314.0,0.4403221]
[1725175841116,0.000818,58315.0,58314.0,0.4403221]
[1725175841333,0.000818,58315.0,58314.0,0.7892921]
[1725175841556,0.000818,58315.0,58314.0,0.7942921]
[1725175841764,0.000818,58315.0,58314.0,0.4513221]
[1725175843224,0.000818,58315.0,58314.0,0.7942921]
[1725175843641,0.342925,58322.0,58316.0,0.1852]
[1725175843864,0.51540786,58344.0,58320.0,0.280342]
[1725175843865,0.02689036,58325.0,58320.0,0.280342]
[1725175844083,0.02689036,58325.0,58322.0,0.356661]
[1725175844327,0.000818,58327.0,58323.0,0.00342858]
[1725175844546,0.000818,58327.0,58325.0,0.171451]
[1725175844780,0.000818,58327.0,58326.0,0.36007834]
[1725175845007,0.000818,58327.0,58326.0,0.69897834]
[1725175845285,0.000818,58327.0,58326.0,0.35607834]
[1725175846215,0.000818,58327.0,58326.0,0.71197834]
[1725175846476,0.000818,58327.0,58326.0,0.84539613]
[1725175846718,0.000818,58327.0,58326.0,0.50249613]
[1725175846951,0.000818,58327.0,58326.0,0.49906779]
[1725175848339,0.000818,58327.0,58326.0,0.33161779]
[1725175849889,0.342866,58332.0,58327.0,0.0805]
[1725175850089,0.342866,58332.0,58329.0,0.0847]
[1725175851532,0.171438,58330.0,58329.0,0.0847]
[1725175851759,0.171438,58330.0,58329.0,0.0937]
[1725175852469,0.171438,58330.0,58329.0,0.1017]
[1725175852677,0.171438,58330.0,58329.0,0.0927]
[1725175852897,0.171438,58330.0,58329.0,0.1047]
[1725175853120,0.171438,58330.0,58329.0,0.02]
[1725175853121,0.952332,58330.0,58329.0,0.02]
[1725175853570,1.295208,58330.0,58329.0,0.02]
[1725175853752,1.295208,58330.0,58329.0,0.012]
[1725175854245,1.296026,58330.0,58329.0,0.022]
[1725175854460,1.296026,58330.0,58329.0,0.01]
[1725175854679,1.296026,58330.0,58326.0,0.0008998]
[1725175854680,0.857235,58327.0,58326.0,0.0008998]
[1725175854893,0.952377,58327.0,58326.0,0.0008998]
[1725175855832,1.295271,58327.0,58326.0,0.0008998]
[1725175856508,1.295271,58327.0,58326.0,0.0108998]
[1725175857782,1.295271,58327.0,58326.0,0.0188998]
[1725175858628,1.395271,58327.0,58326.0,0.0188998]
[1725175859545,1.395271,58327.0,58326.0,0.0108998]
[1725175859767,1.395271,58327.0,58326.0,0.0008998]
[1725175860860,1.397271,58327.0,58326.0,0.0008998]
[1725175861088,1.41196129,58327.0,58326.0,0.0008998]
[1725175861510,1.40996129,58327.0,58326.0,0.0008998]
[1725175861755,1.75485529,58327.0,58326.0,0.0008998]
[1725175866450,1.75567329,58327.0,58326.0,0.0008998]
[1725175869599,2.69288529,58327.0,58326.0,0.0008998]
[1725175869790,2.87267697,58327.0,58326.0,0.0008998]
[1725175870024,2.84040397,58327.0,58326.0,0.0008998]
[1725175870653,2.58933062,58327.0,58326.0,0.0008998]
[1725175872467,2.57114762,58327.0,58326.0,0.0008998]
[1725175872670,2.47984429,58327.0,58326.0,0.0008998]
[1725175872873,2.21457929,58327.0,58326.0,0.0008998]
[1725175873648,2.24147113,58327.0,58326.0,0.0008998]
[1725175876079,1.80556513,58327.0,58326.0,0.0008998]
[1725175876311,1.78256513,58327.0,58326.0,0.0008998]
[1725175880115,1.43967113,58327.0,58326.0,0.0008998]
[1725175880545,1.31763729,58327.0,58326.0,0.0008998]
[1725175880794,1.41277929,58327.0,58326.0,0.0008998]
[1725175881005,1.41277929,58327.0,58326.0,0.1895998]
[1725175883172,0.97474329,58327.0,58326.0,0.1895998]
[1725175883407,1.06988529,58327.0,58326.0,0.1895998]
[1725175883811,1.09677392,58327.0,58326.0,0.1895998]
[1725175886000,0.92532692,58327.0,58326.0,0.1895998]
[1725175886205,1.09677392,58327.0,58326.0,0.1895998]
[1725175890452,1.09677392,58327.0,58326.0,0.0855998]
[1725175890453,1.41277929,58327.0,58326.0,0.0855998]
[1725175890678,1.41277929,58327.0,58326.0,0.0008998]
[1725175892922,1.41277929,58327.0,58326.0,0.1854998]
[1725175892923,0.97474329,58327.0,58326.0,0.1854998]
[1725175893171,0.960053,58327.0,58326.0,0.1854998]
[1725175893424,0.617159,58327.0,58326.0,0.20404978]
[1725175894367,0.174265,58327.0,58326.0,0.20404978]
[1725175895576,0.002818,58327.0,58326.0,0.20404978]
[1725175896020,0.002818,58327.0,58326.0,0.20747822]
[1725175896472,0.002818,58327.0,58326.0,0.18892824]
[1725175897639,0.002818,58327.0,58326.0,0.36037824]
[1725175899022,0.002818,58327.0,58326.0,0.1854998]
[1725175901999,0.174265,58327.0,58326.0,0.1854998]
[1725175902898,0.174265,58327.0,58326.0,0.0785998]
[1725175902899,0.860053,58327.0,58326.0,0.0785998]
[1725175903111,0.517159,58327.0,58326.0,0.0785998]
[1725175904615,0.860053,58327.0,58326.0,0.0785998]
[1725175917224,0.002818,58327.0,58326.0,0.0785998]
[1725175917433,0.002818,58327.0,58326.0,0.1823998]
[1725175917641,0.002818,58327.0,58326.0,0.22121391]
[1725175917851,0.002818,58327.0,58326.0,0.21778528]
[1725175919126,0.174265,58327.0,58326.0,0.21778528]
[1725175919315,0.174265,58327.0,58326.0,0.1823998]
[1725175920313,0.002818,58327.0,58326.0,0.1823998]
[1725175923679,0.174265,58327.0,58326.0,0.1823998]
[1725175924530,0.002818,58327.0,58326.0,0.1823998]
[1725175925162,0.002818,58327.0,58326.0,0.21778528]
[1725175928031,0.002818,58327.0,58326.0,0.1823998]
[1725175929115,0.002818,58327.0,58326.0,0.3538498]
[1725175933564,0.002818,58327.0,58326.0,0.3535889]
[1725175933807,0.002818,58327.0,58326.0,1.0393889]
[1725175934005,0.002818,58327.0,58326.0,1.4793883]
[1725175934233,0.002818,58327.0,58326.0,1.74637021]
[1725175934453,0.002818,58327.0,58326.0,1.64335482]
[1725175935155,0.002818,58327.0,58326.0,1.74637506]
[1725175935366,0.002818,58327.0,58326.0,1.64335482]
[1725175936219,0.002818,58327.0,58326.0,1.64535482]
[1725175936431,0.002818,58327.0,58326.0,1.74834313]
[1725175937074,0.002818,58327.0,58326.0,1.75134313]
[1725175937360,0.002818,58327.0,58326.0,1.65035482]
[1725175940448,0.002818,58327.0,58326.0,1.77898958]
[1725175941136,0.002818,58327.0,58326.0,1.65035482]
[1725175942951,0.002818,58327.0,58326.0,1.66035482]
[1725175943395,0.002818,58327.0,58326.0,1.66009392]
[1725175946623,0.002818,58327.0,58326.0,1.78859924]
[1725175946846,0.002818,58327.0,58326.0,1.66009392]
[1725175947064,0.002818,58327.0,58326.0,1.68309392]
[1725175947288,0.002818,58327.0,58326.0,2.02599392]
[1725175948020,0.002818,58327.0,58326.0,2.03899392]
[1725175948250,0.000818,58327.0,58326.0,2.03899392]
[1725175948483,0.001818,58327.0,58326.0,2.03899392]
[1725175949187,0.000818,58330.0,58329.0,0.017]
[1725175949414,0.000818,58330.0,58329.0,1.8665955]
[1725175949642,0.000818,58330.0,58329.0,2.3094775]
[1725175950293,0.000818,58330.0,58329.0,3.71837145]
[1725175950524,0.000818,58330.0,58329.0,3.5642775]
[1725175950753,0.000818,58330.0,58329.0,3.7489444]
[1725175951199,0.000818,58330.0,58329.0,3.77378498]
[1725175951648,0.000818,58330.0,58329.0,3.76378498]
[1725175951874,0.000818,58330.0,58329.0,3.77778498]
[1725175952085,0.000818,58330.0,58329.0,3.78578498]
[1725175952778,0.000818,58330.0,58329.0,3.77778498]
[1725175952999,0.000818,58330.0,58329.0,3.79178498]
[1725175953229,0.000818,58333.0,58332.0,2.1818514]
[1725175953415,0.000818,58333.0,58332.0,2.57402547]
[1725175953637,0.000818,58333.0,58332.0,2.43617656]
[1725175954089,0.000818,58333.0,58332.0,2.4200613]
[1725175954745,0.000818,58333.0,58332.0,2.4340613]
[1725175955397,0.000818,58333.0,58332.0,3.6888613]
[1725175955824,0.000818,58333.0,58332.0,3.7028613]
[1725175956886,0.000818,58346.0,58332.0,3.7028613]
[1725175956887,0.000818,58346.0,58345.0,1.8383845]
[1725175957159,0.000818,58346.0,58345.0,3.31870104]
[1725175957385,0.000818,58346.0,58345.0,3.2161845]
[1725175957612,0.000818,58346.0,58345.0,3.34432747]
[1725175957853,0.000818,58346.0,58345.0,3.29303823]
[1725175958071,0.000818,58346.0,58345.0,3.38473614]
[1725175958488,0.000818,58346.0,58345.0,3.47556387]
[1725175959583,0.000818,58346.0,58345.0,3.39873614]
[1725175960013,0.000818,58346.0,58345.0,3.50120807]
[1725175960505,0.000818,58346.0,58345.0,3.51510303]
[1725175961219,0.000818,58346.0,58345.0,3.52987772]
[1725175961667,0.000818,58346.0,58345.0,3.77029883]
[1725175962362,0.000818,58346.0,58345.0,3.87266783]
[1725175962578,0.000818,58346.0,58345.0,3.77029883]
[1725175963510,0.000818,58346.0,58345.0,3.87240693]
[1725175964582,0.000818,58346.0,58345.0,3.77003793]
[1725175965649,1e-06,58346.0,58345.0,3.77003793]
[1725175966083,0.0828,58369.0,58368.0,1.199285]
[1725175966298,0.02686876,58378.0,58369.0,0.856617]
[1725175966299,0.000817,58370.0,58369.0,0.856617]
[1725175966517,0.000817,58370.0,58369.0,1.199264]
[1725175966729,0.000817,58370.0,58369.0,1.2943634]
[1725175967419,0.000817,58370.0,58369.0,1.3008416]
[1725175967634,0.000817,58370.0,58369.0,1.4447636]
[1725175967920,0.000817,58370.0,58369.0,1.4457636]
[1725175968989,0.000817,58370.0,58369.0,1.5301636]
[1725175969623,0.000817,58370.0,58369.0,1.5291636]
[1725175970085,0.000817,58370.0,58369.0,1.5361636]
[1725175970945,0.000817,58370.0,58369.0,1.5421636]
[1725175971359,0.000817,58370.0,58369.0,1.5521636]
[1725175973556,0.000817,58370.0,58369.0,1.5749027]
[1725175974031,0.192717,58370.0,58369.0,1.0132781]
[1725175974283,0.192717,58370.0,58369.0,0.5267091]
[1725175974497,0.192717,58370.0,58369.0,0.5247091]
[1725175974723,0.192717,58370.0,58369.0,0.5317091]
[1725175975158,0.192717,58370.0,58369.0,0.5247091]
[1725175975373,0.192717,58370.0,58369.0,0.61144671]